[Event "December 19 Late 2023"]
[Site "https://www.chess.com"]
[Date "2023.12.19"]
[Round "11"]
[White "Adla, Diego"]
[Black "Yeletsky, Ivan"]
[Result "0-1"]
[Board "23"]
[TimeControl "180+1"]
[WhiteFideId "100072"]
[BlackFideId "24180327"]
[WhiteElo "2377"]
[BlackElo "2379"]
[WhiteTeam "ARG"]
[BlackTeam "RUS"]
[WhiteClock "0:00:00"]
[BlackClock "0:00:03"]

1. e4 {[%clk 0:02:49]}  e5 {[%clk 0:02:51]} 2. Nf3 {[%clk 0:02:49]}  Nc6 {[%clk 0:02:52]} 3. Nc3 {[%clk 0:02:49]}  Nf6 {[%clk 0:02:52]} 4. d4 {[%clk 0:02:50]}  Bb4 {[%clk 0:02:43]} 5. Nxe5 {[%clk 0:02:48]}  O-O {[%clk 0:02:42]} 6. Qd3 {[%clk 0:02:43]}  d5 {[%clk 0:02:35]} 7. exd5 {[%clk 0:02:38]}  Qxd5 {[%clk 0:02:30]} 8. Nxc6 {[%clk 0:02:38]}  Qxc6 {[%clk 0:02:14]} 9. Be3 {[%clk 0:02:13]}  Nd5 {[%clk 0:02:01]} 10. Bd2 {[%clk 0:02:10]}  Re8+ {[%clk 0:01:47]} 11. Be2 {[%clk 0:02:10]}  Bf5 {[%clk 0:01:17]} 12. Qxf5 {[%clk 0:01:48]}  Bxc3 {[%clk 0:01:16]} 13. bxc3 {[%clk 0:01:48]}  Nxc3 {[%clk 0:01:17]} 14. Be3 {[%clk 0:01:39]}  Nxe2 {[%clk 0:00:34]} 15. Kxe2 {[%clk 0:01:38]}  g6 {[%clk 0:00:32]} 16. Qd3 {[%clk 0:01:35]}  Qxg2 {[%clk 0:00:32]} 17. Rag1 {[%clk 0:01:34]}  Qd5 {[%clk 0:00:30]} 18. c4 {[%clk 0:01:29]}  Qa5 {[%clk 0:00:27]} 19. h4 {[%clk 0:01:26]}  b5 {[%clk 0:00:20]} 20. cxb5 {[%clk 0:01:20]}  Qxa2+ {[%clk 0:00:20]} 21. Kf3 {[%clk 0:01:20]}  Qd5+ {[%clk 0:00:20]} 22. Kg3 {[%clk 0:01:21]}  Re4 {[%clk 0:00:13]} 23. f3 {[%clk 0:01:11]}  Qd6+ {[%clk 0:00:04]} 24. Kf2 {[%clk 0:01:09]}  Re6 {[%clk 0:00:03]} 25. d5 {[%clk 0:01:02]}  Re7 {[%clk 0:00:03]} 26. Re1 {[%clk 0:00:55]}  Rae8 {[%clk 0:00:02]} 27. Bd2 {[%clk 0:00:54]}  Qc5+ {[%clk 0:00:02]} 28. Kg2 {[%clk 0:00:53]}  Rxe1 {[%clk 0:00:02]} 29. Rxe1 {[%clk 0:00:52]}  Rd8 {[%clk 0:00:02]} 30. Bc3 {[%clk 0:00:46]}  Kf8 {[%clk 0:00:03]} 31. Bf6 {[%clk 0:00:19]}  Qxd5 {[%clk 0:00:01]} 32. Qxd5 {[%clk 0:00:11]}  Rxd5 {[%clk 0:00:02]} 33. Rc1 {[%clk 0:00:09]}  Rd7 {[%clk 0:00:02]} 34. Rc6 {[%clk 0:00:08]}  Ke8 {[%clk 0:00:02]} 35. Ra6 {[%clk 0:00:07]}  Rd5 {[%clk 0:00:01]} 36. Rxa7 {[%clk 0:00:06]}  Rxb5 {[%clk 0:00:02]} 37. Rxc7 {[%clk 0:00:06]}  Rf5 {[%clk 0:00:03]} 38. Bg5 {[%clk 0:00:02]}  h6 {[%clk 0:00:03]} 39. Bxh6 {[%clk 0:00:02]}  f6 {[%clk 0:00:03]} 40. Be3 {[%clk 0:00:02]}  Rh5 {[%clk 0:00:03]} 41. Kg3 {[%clk 0:00:02]}  Kf8 {[%clk 0:00:03]} 42. Rd7 {[%clk 0:00:01]}  Kg8 {[%clk 0:00:03]} 43. Rd4 {[%clk 0:00:02]}  Kf7 {[%clk 0:00:03]} 44. Rg4 {[%clk 0:00:02]}  Ra5 {[%clk 0:00:03]} 45. Rd4 {[%clk 0:00:03]}  Ra3 {[%clk 0:00:04]} 46. Re4 {[%clk 0:00:03]}  Rb3 {[%clk 0:00:04]} 47. Kf4 {[%clk 0:00:02]}  Ra3 {[%clk 0:00:04]} 48. Rd4 {[%clk 0:00:02]}  g5+ {[%clk 0:00:03]} 49. Ke4 {[%clk 0:00:02]}  gxh4 {[%clk 0:00:03]} 50. Bf4 {[%clk 0:00:01]}  h3 {[%clk 0:00:03]} 51. Kf5 {[%clk 0:00:00]}  Ra5+ {[%clk 0:00:03]} 0-1

[Event "December 19 Late 2023"]
[Site "https://www.chess.com"]
[Date "2023.12.19"]
[Round "11"]
[White "Novak, Ratko"]
[Black "Postny, Evgeny"]
[Result "0-1"]
[Board "26"]
[TimeControl "180+1"]
[WhiteFideId "14511827"]
[BlackFideId "2804344"]
[WhiteElo "2036"]
[BlackElo "2505"]
[WhiteTeam "CRO"]
[BlackTeam "ISR"]
[WhiteClock "0:00:00"]
[BlackClock "0:00:07"]

1. d4 {[%clk 0:02:59]}  Nf6 {[%clk 0:02:57]} 2. c4 {[%clk 0:02:59]}  e5 {[%clk 0:02:57]} 3. dxe5 {[%clk 0:02:59]}  Ne4 {[%clk 0:02:58]} 4. Nf3 {[%clk 0:03:00]}  Nc6 {[%clk 0:02:57]} 5. a3 {[%clk 0:02:59]}  d6 {[%clk 0:02:57]} 6. Qc2 {[%clk 0:02:53]}  d5 {[%clk 0:02:46]} 7. cxd5 {[%clk 0:02:47]}  Qxd5 {[%clk 0:02:47]} 8. Nc3 {[%clk 0:02:32]}  Nxc3 {[%clk 0:02:46]} 9. Qxc3 {[%clk 0:02:32]}  Bg4 {[%clk 0:02:40]} 10. Bf4 {[%clk 0:02:32]}  O-O-O {[%clk 0:02:36]} 11. Rc1 {[%clk 0:02:25]}  h6 {[%clk 0:02:25]} 12. Qc4 {[%clk 0:02:15]}  g5 {[%clk 0:02:15]} 13. Qxd5 {[%clk 0:02:10]}  Rxd5 {[%clk 0:02:14]} 14. Bg3 {[%clk 0:02:10]}  Bg7 {[%clk 0:01:56]} 15. e4 {[%clk 0:02:10]}  Ra5 {[%clk 0:01:53]} 16. Bc4 {[%clk 0:02:03]}  Bxf3 {[%clk 0:01:50]} 17. gxf3 {[%clk 0:02:02]}  Nxe5 {[%clk 0:01:50]} 18. Ba2 {[%clk 0:01:39]}  Nd3+ {[%clk 0:01:48]} 19. Ke2 {[%clk 0:01:39]}  Nxc1+ {[%clk 0:01:47]} 20. Rxc1 {[%clk 0:01:39]}  Be5 {[%clk 0:01:35]} 21. Bxf7 {[%clk 0:01:37]}  Bxg3 {[%clk 0:01:30]} 22. fxg3 {[%clk 0:01:35]}  Rf8 {[%clk 0:01:28]} 23. Be6+ {[%clk 0:01:31]}  Kd8 {[%clk 0:01:28]} 24. Ke3 {[%clk 0:01:28]}  Rb5 {[%clk 0:01:21]} 25. Rc2 {[%clk 0:01:28]}  Ke7 {[%clk 0:01:15]} 26. Bg4 {[%clk 0:01:21]}  Rb3+ {[%clk 0:01:12]} 27. Ke2 {[%clk 0:01:19]}  c6 {[%clk 0:01:10]} 28. e5 {[%clk 0:01:16]}  Rb5 {[%clk 0:01:06]} 29. e6 {[%clk 0:01:14]}  Re5+ {[%clk 0:00:56]} 30. Kf2 {[%clk 0:01:13]}  Rd8 {[%clk 0:00:53]} 31. f4 {[%clk 0:01:11]}  gxf4 {[%clk 0:00:47]} 32. gxf4 {[%clk 0:01:11]}  Rf8 {[%clk 0:00:47]} 33. Kg3 {[%clk 0:01:10]}  Re3+ {[%clk 0:00:46]} 34. Kf2 {[%clk 0:01:09]}  Re4 {[%clk 0:00:45]} 35. Kg3 {[%clk 0:01:01]}  Rfxf4 {[%clk 0:00:40]} 36. h3 {[%clk 0:01:00]}  Rf8 {[%clk 0:00:33]} 37. Rd2 {[%clk 0:01:00]}  Rd8 {[%clk 0:00:30]} 38. Rf2 {[%clk 0:01:00]}  Rxe6 {[%clk 0:00:18]} 39. Bxe6 {[%clk 0:00:59]}  Kxe6 {[%clk 0:00:19]} 40. Kg4 {[%clk 0:00:57]}  Rd5 {[%clk 0:00:13]} 41. h4 {[%clk 0:00:57]}  h5+ {[%clk 0:00:12]} 42. Kg3 {[%clk 0:00:54]}  Rd3+ {[%clk 0:00:12]} 43. Kf4 {[%clk 0:00:53]}  Rd5 {[%clk 0:00:09]} 44. Re2+ {[%clk 0:00:53]}  Kf6 {[%clk 0:00:09]} 45. Re8 {[%clk 0:00:48]}  Rd4+ {[%clk 0:00:08]} 46. Kg3 {[%clk 0:00:48]}  Rd3+ {[%clk 0:00:08]} 47. Kf4 {[%clk 0:00:48]}  Rb3 {[%clk 0:00:08]} 48. Re2 {[%clk 0:00:41]}  Rh3 {[%clk 0:00:07]} 49. Rd2 {[%clk 0:00:34]}  Rxh4+ {[%clk 0:00:07]} 50. Kg3 {[%clk 0:00:34]}  Rg4+ {[%clk 0:00:07]} 51. Kh3 {[%clk 0:00:35]}  Rg7 {[%clk 0:00:07]} 52. Kh4 {[%clk 0:00:34]}  Rh7 {[%clk 0:00:07]} 53. Re2 {[%clk 0:00:30]}  Kf5 {[%clk 0:00:06]} 54. Re8 {[%clk 0:00:30]}  Kf4 {[%clk 0:00:06]} 55. Re1 {[%clk 0:00:29]}  a6 {[%clk 0:00:06]} 56. Re8 {[%clk 0:00:30]}  Kf3 {[%clk 0:00:06]} 57. Re1 {[%clk 0:00:29]}  Kf4 {[%clk 0:00:06]} 58. Re8 {[%clk 0:00:30]}  Rd7 {[%clk 0:00:06]} 59. Re2 {[%clk 0:00:28]}  Rd5 {[%clk 0:00:06]} 60. Re7 {[%clk 0:00:28]}  Rb5 {[%clk 0:00:06]} 61. Re2 {[%clk 0:00:28]}  a5 {[%clk 0:00:06]} 62. Kh3 {[%clk 0:00:06]}  Kf3 {[%clk 0:00:06]} 63. Rd2 {[%clk 0:00:03]}  Ke3 {[%clk 0:00:06]} 64. Rc2 {[%clk 0:00:03]}  Kd3 {[%clk 0:00:06]} 65. Rc3+ {[%clk 0:00:03]}  Kd4 {[%clk 0:00:07]} 66. Rc2 {[%clk 0:00:03]}  Kd3 {[%clk 0:00:07]} 67. Rc3+ {[%clk 0:00:00]}  Kd2 {[%clk 0:00:07]} 0-1

[Event "December 19 Late 2023"]
[Site "https://www.chess.com"]
[Date "2023.12.19"]
[Round "11"]
[White "Sanal, Vahap"]
[Black "Lymar, Vladislav"]
[Result "1-0"]
[Board "27"]
[TimeControl "180+1"]
[WhiteFideId "6300545"]
[BlackFideId "14162180"]
[WhiteElo "2637"]
[BlackElo "2158"]
[WhiteTeam "TUR"]
[BlackTeam "UKR"]
[WhiteClock "0:01:13"]
[BlackClock "0:00:00"]

1. e4 {[%clk 0:03:00]}  d6 {[%clk 0:03:00]} 2. d4 {[%clk 0:03:00]}  Nf6 {[%clk 0:03:01]} 3. Nc3 {[%clk 0:03:00]}  e5 {[%clk 0:03:01]} 4. Nf3 {[%clk 0:03:01]}  Nbd7 {[%clk 0:03:01]} 5. g4 {[%clk 0:03:00]}  h6 {[%clk 0:02:56]} 6. g5 {[%clk 0:02:55]}  hxg5 {[%clk 0:02:54]} 7. Bxg5 {[%clk 0:02:55]}  Be7 {[%clk 0:02:52]} 8. Bc4 {[%clk 0:02:56]}  c6 {[%clk 0:02:50]} 9. Qe2 {[%clk 0:02:49]}  Qa5 {[%clk 0:02:42]} 10. O-O-O {[%clk 0:02:47]}  exd4 {[%clk 0:02:36]} 11. Rxd4 {[%clk 0:02:47]}  Ne5 {[%clk 0:02:35]} 12. Nxe5 {[%clk 0:02:44]}  dxe5 {[%clk 0:02:32]} 13. Rd2 {[%clk 0:02:33]}  Be6 {[%clk 0:02:06]} 14. Bxe6 {[%clk 0:02:32]}  fxe6 {[%clk 0:02:07]} 15. Qc4 {[%clk 0:02:05]}  Kf7 {[%clk 0:02:01]} 16. Bxf6 {[%clk 0:01:48]}  gxf6 {[%clk 0:01:58]} 17. Rd7 {[%clk 0:01:49]}  Qb6 {[%clk 0:01:48]} 18. Rhd1 {[%clk 0:01:39]}  Qxf2 {[%clk 0:01:06]} 19. Qb4 {[%clk 0:01:31]}  Rae8 {[%clk 0:01:02]} 20. Qxb7 {[%clk 0:01:32]}  Rxh2 {[%clk 0:01:00]} 21. R7d2 {[%clk 0:01:32]}  Qf4 {[%clk 0:00:59]} 22. Qxc6 {[%clk 0:01:32]}  Rd8 {[%clk 0:00:55]} 23. Nd5 {[%clk 0:01:30]}  exd5 {[%clk 0:00:53]} 24. exd5 {[%clk 0:01:30]}  Rg8 {[%clk 0:00:30]} 25. Qe6+ {[%clk 0:01:30]}  Kf8 {[%clk 0:00:29]} 26. d6 {[%clk 0:01:31]}  Bd8 {[%clk 0:00:22]} 27. Qc8 {[%clk 0:01:29]}  Kg7 {[%clk 0:00:17]} 28. Rg1+ {[%clk 0:01:25]}  Kh6 {[%clk 0:00:13]} 29. Rd1 {[%clk 0:01:25]}  Rxd2 {[%clk 0:00:12]} 30. Qh3+ {[%clk 0:01:26]}  Kg6 {[%clk 0:00:08]} 31. Rxd2 {[%clk 0:01:27]}  Qf5 {[%clk 0:00:05]} 32. Rg2+ {[%clk 0:01:25]}  Qg5+ {[%clk 0:00:05]} 33. Rxg5+ {[%clk 0:01:25]}  fxg5 {[%clk 0:00:06]} 34. Qe6+ {[%clk 0:01:25]}  Kg7 {[%clk 0:00:06]} 35. Qxe5+ {[%clk 0:01:25]}  Bf6 {[%clk 0:00:07]} 36. Qf5 {[%clk 0:01:26]}  Rd8 {[%clk 0:00:07]} 37. d7 {[%clk 0:01:26]}  Kf7 {[%clk 0:00:07]} 38. b4 {[%clk 0:01:12]}  Ke7 {[%clk 0:00:08]} 39. Qc5+ {[%clk 0:01:13]}  Kxd7 {[%clk 0:00:07]} 40. Qxa7+ {[%clk 0:01:13]}  Ke6 {[%clk 0:00:08]} 41. Qe3+ {[%clk 0:01:14]}  Kf5 {[%clk 0:00:08]} 42. Qf3+ {[%clk 0:01:13]}  Kg6 {[%clk 0:00:08]} 43. c4 {[%clk 0:01:11]}  Rd4 {[%clk 0:00:07]} 44. c5 {[%clk 0:01:12]}  Rxb4 {[%clk 0:00:06]} 45. Qd3+ {[%clk 0:01:11]}  Kg7 {[%clk 0:00:06]} 46. c6 {[%clk 0:01:11]}  Rb6 {[%clk 0:00:02]} 47. Qd7+ {[%clk 0:01:12]}  Kh6 {[%clk 0:00:00]} 48. c7 {[%clk 0:01:13]} 1-0

[Event "December 19 Late 2023"]
[Site "https://www.chess.com"]
[Date "2023.12.19"]
[Round "11"]
[White "Rustemov, Alexander"]
[Black "Keleberda, Tymur"]
[Result "0-1"]
[Board "30"]
[TimeControl "180+1"]
[WhiteFideId "4119002"]
[BlackFideId "14174294"]
[WhiteElo "2783"]
[BlackElo "2198"]
[WhiteTeam "RUS"]
[BlackTeam "CAN"]
[WhiteClock "0:00:00"]
[BlackClock "0:00:14"]

1. d4 {[%clk 0:02:58]}  Nf6 {[%clk 0:02:51]} 2. c4 {[%clk 0:02:57]}  e6 {[%clk 0:02:50]} 3. Nf3 {[%clk 0:02:56]}  b6 {[%clk 0:02:50]} 4. a3 {[%clk 0:02:56]}  Ba6 {[%clk 0:02:50]} 5. Qc2 {[%clk 0:02:55]}  Bb7 {[%clk 0:02:50]} 6. Nc3 {[%clk 0:02:54]}  c5 {[%clk 0:02:50]} 7. e4 {[%clk 0:02:52]}  cxd4 {[%clk 0:02:50]} 8. Nxd4 {[%clk 0:02:52]}  Bc5 {[%clk 0:02:51]} 9. Nb3 {[%clk 0:02:48]}  Ng4 {[%clk 0:02:42]} 10. Nxc5 {[%clk 0:02:44]}  bxc5 {[%clk 0:02:41]} 11. Be2 {[%clk 0:02:26]}  h5 {[%clk 0:02:27]} 12. h3 {[%clk 0:02:21]}  Ne5 {[%clk 0:02:21]} 13. Be3 {[%clk 0:02:20]}  Na6 {[%clk 0:01:32]} 14. f4 {[%clk 0:02:09]}  Nc6 {[%clk 0:01:31]} 15. Rd1 {[%clk 0:02:06]}  Nd4 {[%clk 0:01:16]} 16. Bxd4 {[%clk 0:02:02]}  cxd4 {[%clk 0:01:17]} 17. Rxd4 {[%clk 0:02:02]}  Qh4+ {[%clk 0:01:18]} 18. Kd1 {[%clk 0:01:45]}  Qxf4 {[%clk 0:01:18]} 19. Qd2 {[%clk 0:01:43]}  Qxd2+ {[%clk 0:01:05]} 20. Kxd2 {[%clk 0:01:43]}  Nc5 {[%clk 0:01:05]} 21. Ke3 {[%clk 0:01:40]}  a5 {[%clk 0:01:03]} 22. b4 {[%clk 0:01:29]}  axb4 {[%clk 0:01:02]} 23. axb4 {[%clk 0:01:30]}  Ra3 {[%clk 0:01:03]} 24. bxc5 {[%clk 0:01:11]}  Rxc3+ {[%clk 0:01:02]} 25. Kd2 {[%clk 0:01:01]}  Rb3 {[%clk 0:00:40]} 26. Kc2 {[%clk 0:01:00]}  Ra3 {[%clk 0:00:40]} 27. Rb1 {[%clk 0:00:57]}  Ra7 {[%clk 0:00:41]} 28. Bf3 {[%clk 0:00:47]}  Ke7 {[%clk 0:00:39]} 29. h4 {[%clk 0:00:36]}  e5 {[%clk 0:00:35]} 30. Rd6 {[%clk 0:00:34]}  Bc6 {[%clk 0:00:31]} 31. Rd2 {[%clk 0:00:32]}  Ra5 {[%clk 0:00:28]} 32. Kd3 {[%clk 0:00:28]}  g6 {[%clk 0:00:27]} 33. Rdb2 {[%clk 0:00:20]}  Rha8 {[%clk 0:00:28]} 34. Rb5 {[%clk 0:00:15]}  Ra3+ {[%clk 0:00:26]} 35. R5b3 {[%clk 0:00:12]}  Rxb3+ {[%clk 0:00:22]} 36. Rxb3 {[%clk 0:00:11]}  Ra5 {[%clk 0:00:23]} 37. Kc3 {[%clk 0:00:10]}  Rxc5 {[%clk 0:00:19]} 38. Kb4 {[%clk 0:00:10]}  d6 {[%clk 0:00:20]} 39. Ra3 {[%clk 0:00:11]}  Bd7 {[%clk 0:00:20]} 40. Ra7 {[%clk 0:00:11]}  Kd8 {[%clk 0:00:17]} 41. Ra8+ {[%clk 0:00:09]}  Rc8 {[%clk 0:00:15]} 42. Ra6 {[%clk 0:00:09]}  Ke7 {[%clk 0:00:14]} 43. Ra7 {[%clk 0:00:09]}  Kd8 {[%clk 0:00:13]} 44. Ra6 {[%clk 0:00:09]}  Bc6 {[%clk 0:00:08]} 45. g4 {[%clk 0:00:07]}  hxg4 {[%clk 0:00:07]} 46. Bxg4 {[%clk 0:00:08]}  Rc7 {[%clk 0:00:07]} 47. Bf3 {[%clk 0:00:06]}  Ke7 {[%clk 0:00:07]} 48. Kc3 {[%clk 0:00:06]}  Bd7 {[%clk 0:00:07]} 49. Kd3 {[%clk 0:00:05]}  Rb7 {[%clk 0:00:07]} 50. Kc3 {[%clk 0:00:04]}  Be6 {[%clk 0:00:07]} 51. h5 {[%clk 0:00:04]}  Rc7 {[%clk 0:00:05]} 52. Ra4 {[%clk 0:00:03]}  gxh5 {[%clk 0:00:05]} 53. Bxh5 {[%clk 0:00:03]}  Rc8 {[%clk 0:00:05]} 54. Be2 {[%clk 0:00:04]}  Rh8 {[%clk 0:00:05]} 55. Ra7+ {[%clk 0:00:03]}  Kf6 {[%clk 0:00:05]} 56. Bd3 {[%clk 0:00:04]}  Rh1 {[%clk 0:00:05]} 57. Kd2 {[%clk 0:00:05]}  Rh2+ {[%clk 0:00:04]} 58. Ke3 {[%clk 0:00:05]}  Rb2 {[%clk 0:00:04]} 59. Ra6 {[%clk 0:00:05]}  Ke7 {[%clk 0:00:04]} 60. Ra7+ {[%clk 0:00:05]}  Kd8 {[%clk 0:00:05]} 61. Ra6 {[%clk 0:00:06]}  Kc7 {[%clk 0:00:05]} 62. Ra7+ {[%clk 0:00:07]}  Kb6 {[%clk 0:00:06]} 63. Ra8 {[%clk 0:00:07]}  Kc5 {[%clk 0:00:05]} 64. Ra5+ {[%clk 0:00:06]}  Kc6 {[%clk 0:00:04]} 65. Ra6+ {[%clk 0:00:06]}  Rb6 {[%clk 0:00:03]} 66. Ra7 {[%clk 0:00:06]}  Rb4 {[%clk 0:00:03]} 67. Kd2 {[%clk 0:00:06]}  Rb2+ {[%clk 0:00:02]} 68. Kc3 {[%clk 0:00:07]}  Rf2 {[%clk 0:00:02]} 69. Ra6+ {[%clk 0:00:07]}  Kc7 {[%clk 0:00:02]} 70. Ra7+ {[%clk 0:00:08]}  Kb6 {[%clk 0:00:03]} 71. Ra8 {[%clk 0:00:08]}  Kc5 {[%clk 0:00:03]} 72. Ra5+ {[%clk 0:00:07]}  Kc6 {[%clk 0:00:04]} 73. Ra6+ {[%clk 0:00:07]}  Kd7 {[%clk 0:00:04]} 74. Ra7+ {[%clk 0:00:08]}  Kd8 {[%clk 0:00:05]} 75. Ra6 {[%clk 0:00:07]}  Kc7 {[%clk 0:00:05]} 76. Ra7+ {[%clk 0:00:07]}  Kb6 {[%clk 0:00:06]} 77. Ra8 {[%clk 0:00:07]}  Rh2 {[%clk 0:00:06]} 78. Rd8 {[%clk 0:00:05]}  Kc6 {[%clk 0:00:06]} 79. Ra8 {[%clk 0:00:05]}  Rh3 {[%clk 0:00:06]} 80. Kd2 {[%clk 0:00:06]}  Kc7 {[%clk 0:00:06]} 81. Ra7+ {[%clk 0:00:06]}  Kb6 {[%clk 0:00:07]} 82. Ra8 {[%clk 0:00:05]}  Bg4 {[%clk 0:00:07]} 83. Kc2 {[%clk 0:00:05]}  Kc5 {[%clk 0:00:07]} 84. Ra5+ {[%clk 0:00:04]}  Kc6 {[%clk 0:00:03]} 85. Ra6+ {[%clk 0:00:05]}  Kc5 {[%clk 0:00:03]} 86. Ra5+ {[%clk 0:00:05]}  Kb6 {[%clk 0:00:04]} 87. Rd5 {[%clk 0:00:06]}  Kc6 {[%clk 0:00:04]} 88. Ra5 {[%clk 0:00:06]}  Be6 {[%clk 0:00:04]} 89. Kd2 {[%clk 0:00:06]}  Kb6 {[%clk 0:00:03]} 90. Rb5+ {[%clk 0:00:06]}  Kc6 {[%clk 0:00:04]} 91. Ra5 {[%clk 0:00:07]}  Rh4 {[%clk 0:00:03]} 92. Ra6+ {[%clk 0:00:07]}  Kc5 {[%clk 0:00:03]} 93. Kc3 {[%clk 0:00:06]}  Rh3 {[%clk 0:00:03]} 94. Kd2 {[%clk 0:00:06]}  Kd4 {[%clk 0:00:03]} 95. Rxd6+ {[%clk 0:00:05]}  Kc5 {[%clk 0:00:03]} 96. Rd8 {[%clk 0:00:06]}  Rh2+ {[%clk 0:00:03]} 97. Kc3 {[%clk 0:00:06]}  Ra2 {[%clk 0:00:03]} 98. Rb8 {[%clk 0:00:06]}  Ra3+ {[%clk 0:00:03]} 99. Kd2 {[%clk 0:00:06]}  Kd4 {[%clk 0:00:03]} 100. Rd8+ {[%clk 0:00:06]}  Kc5 {[%clk 0:00:03]} 101. Ke2 {[%clk 0:00:05]}  Ra4 {[%clk 0:00:04]} 102. Ke3 {[%clk 0:00:06]}  Ra3 {[%clk 0:00:03]} 103. Ke2 {[%clk 0:00:05]}  Kb4 {[%clk 0:00:03]} 104. Rb8+ {[%clk 0:00:04]}  Kc5 {[%clk 0:00:03]} 105. Rb5+ {[%clk 0:00:03]}  Kd4 {[%clk 0:00:03]} 106. Rd5+ {[%clk 0:00:01]}  Bxd5 {[%clk 0:00:04]} 107. exd5 {[%clk 0:00:01]}  Rxd3 {[%clk 0:00:04]} 108. d6 {[%clk 0:00:02]}  Kxc4 {[%clk 0:00:04]} 109. d7 {[%clk 0:00:02]}  Rxd7 {[%clk 0:00:05]} 110. Ke3 {[%clk 0:00:02]}  Rd4 {[%clk 0:00:06]} 111. Kf3 {[%clk 0:00:02]}  Kd5 {[%clk 0:00:07]} 112. Ke3 {[%clk 0:00:03]}  Rf4 {[%clk 0:00:07]} 113. Ke2 {[%clk 0:00:04]}  Ke6 {[%clk 0:00:08]} 114. Ke3 {[%clk 0:00:05]}  Kf5 {[%clk 0:00:09]} 115. Ke2 {[%clk 0:00:05]}  Kg4 {[%clk 0:00:10]} 116. Ke1 {[%clk 0:00:06]}  f5 {[%clk 0:00:11]} 117. Ke2 {[%clk 0:00:06]}  e4 {[%clk 0:00:12]} 118. Ke3 {[%clk 0:00:07]}  Rf3+ {[%clk 0:00:13]} 119. Ke2 {[%clk 0:00:08]}  Kf4 {[%clk 0:00:14]} 120. Ke1 {[%clk 0:00:09]}  Re3+ {[%clk 0:00:14]} 121. Kf2 {[%clk 0:00:00]}  Rf3+ {[%clk 0:00:14]} 0-1

[Event "December 19 Late 2023"]
[Site "https://www.chess.com"]
[Date "2023.12.19"]
[Round "11"]
[White "Khater, Sherif"]
[Black "Bardyk, Artem"]
[Result "0-1"]
[Board "33"]
[TimeControl "180+1"]
[WhiteFideId "2034280"]
[BlackFideId "34349979"]
[WhiteElo "2565"]
[BlackElo "2300"]
[WhiteTeam "USA"]
[BlackTeam "RUS"]
[WhiteClock "0:00:00"]
[BlackClock "0:00:31"]

1. a3 {[%clk 0:03:00]}  d5 {[%clk 0:02:48]} 2. b4 {[%clk 0:03:00]}  Nf6 {[%clk 0:02:47]} 3. Bb2 {[%clk 0:03:00]}  a5 {[%clk 0:02:41]} 4. b5 {[%clk 0:03:00]}  Nbd7 {[%clk 0:02:41]} 5. e3 {[%clk 0:03:00]}  c6 {[%clk 0:02:40]} 6. Nf3 {[%clk 0:03:00]}  e6 {[%clk 0:02:37]} 7. Be2 {[%clk 0:02:58]}  Bd6 {[%clk 0:02:36]} 8. O-O {[%clk 0:02:58]}  e5 {[%clk 0:02:36]} 9. d4 {[%clk 0:02:58]}  e4 {[%clk 0:02:36]} 10. Ne5 {[%clk 0:02:58]}  O-O {[%clk 0:02:36]} 11. f3 {[%clk 0:02:55]}  exf3 {[%clk 0:02:36]} 12. Rxf3 {[%clk 0:02:51]}  Qc7 {[%clk 0:02:35]} 13. bxc6 {[%clk 0:02:46]}  bxc6 {[%clk 0:02:35]} 14. Nxd7 {[%clk 0:02:37]}  Bxh2+ {[%clk 0:02:28]} 15. Kh1 {[%clk 0:02:37]}  Bxd7 {[%clk 0:02:28]} 16. Nd2 {[%clk 0:02:19]}  Ng4 {[%clk 0:02:25]} 17. Nf1 {[%clk 0:02:13]}  Rae8 {[%clk 0:02:19]} 18. Bd3 {[%clk 0:02:13]}  Re6 {[%clk 0:02:09]} 19. Qe2 {[%clk 0:01:54]}  Rh6 {[%clk 0:02:06]} 20. Rh3 {[%clk 0:01:54]}  Bd6 {[%clk 0:01:29]} 21. e4 {[%clk 0:01:37]}  dxe4 {[%clk 0:01:18]} 22. Bxe4 {[%clk 0:01:32]}  Rxh3+ {[%clk 0:01:17]} 23. gxh3 {[%clk 0:01:31]}  Nf6 {[%clk 0:01:18]} 24. Bg2 {[%clk 0:01:29]}  Re8 {[%clk 0:01:18]} 25. Qd3 {[%clk 0:01:22]}  Qc8 {[%clk 0:01:17]} 26. Nd2 {[%clk 0:01:18]}  Bf5 {[%clk 0:01:03]} 27. Qf3 {[%clk 0:01:17]}  Ne4 {[%clk 0:01:03]} 28. Nf1 {[%clk 0:00:52]}  Ng5 {[%clk 0:00:56]} 29. Qxc6 {[%clk 0:00:47]}  Qxc6 {[%clk 0:00:55]} 30. Bxc6 {[%clk 0:00:48]}  Re2 {[%clk 0:00:53]} 31. Bc3 {[%clk 0:00:35]}  Rxc2 {[%clk 0:00:39]} 32. Ne3 {[%clk 0:00:30]}  Rxc3 {[%clk 0:00:39]} 33. Nxf5 {[%clk 0:00:31]}  Rxc6 {[%clk 0:00:40]} 34. d5 {[%clk 0:00:27]}  Rb6 {[%clk 0:00:39]} 35. Rc1 {[%clk 0:00:25]}  g6 {[%clk 0:00:38]} 36. Rc8+ {[%clk 0:00:25]}  Bf8 {[%clk 0:00:38]} 37. Ne7+ {[%clk 0:00:14]}  Kg7 {[%clk 0:00:37]} 38. Nc6 {[%clk 0:00:14]}  Bxa3 {[%clk 0:00:33]} 39. Nxa5 {[%clk 0:00:11]}  Nxh3 {[%clk 0:00:31]} 40. Nc4 {[%clk 0:00:11]}  Ra6 {[%clk 0:00:29]} 41. Nxa3 {[%clk 0:00:10]}  Rxa3 {[%clk 0:00:30]} 42. d6 {[%clk 0:00:11]}  Rd3 {[%clk 0:00:30]} 43. Rd8 {[%clk 0:00:09]}  Nf2+ {[%clk 0:00:30]} 44. Kg2 {[%clk 0:00:09]}  Ne4 {[%clk 0:00:31]} 45. d7 {[%clk 0:00:00]}  Nf6 {[%clk 0:00:31]} 0-1

[Event "December 19 Late 2023"]
[Site "https://www.chess.com"]
[Date "2023.12.19"]
[Round "11"]
[White "Sturt, Raven"]
[Black "Cervantes Landeiro, Thalia"]
[Result "1-0"]
[Board "35"]
[TimeControl "180+1"]
[WhiteFideId "2007304"]
[BlackFideId "3520498"]
[WhiteElo "2408"]
[BlackElo "2189"]
[WhiteTeam "USA"]
[BlackTeam "USA"]
[WhiteClock "0:00:53"]
[BlackClock "0:00:02"]

1. f4 {[%clk 0:03:00]}  d5 {[%clk 0:02:59]} 2. Nf3 {[%clk 0:02:55]}  c5 {[%clk 0:02:57]} 3. e3 {[%clk 0:02:55]}  a6 {[%clk 0:02:57]} 4. b4 {[%clk 0:02:43]}  cxb4 {[%clk 0:02:56]} 5. a3 {[%clk 0:02:43]}  e6 {[%clk 0:02:46]} 6. Bb2 {[%clk 0:02:30]}  Nf6 {[%clk 0:02:45]} 7. c4 {[%clk 0:02:28]}  bxc3 {[%clk 0:02:44]} 8. Nxc3 {[%clk 0:02:29]}  Nc6 {[%clk 0:02:44]} 9. Bd3 {[%clk 0:02:25]}  Bc5 {[%clk 0:02:44]} 10. Qc2 {[%clk 0:02:22]}  Ba7 {[%clk 0:02:37]} 11. g4 {[%clk 0:02:16]}  d4 {[%clk 0:02:31]} 12. Ne4 {[%clk 0:02:15]}  dxe3 {[%clk 0:02:14]} 13. dxe3 {[%clk 0:02:08]}  Nxg4 {[%clk 0:01:59]} 14. Rg1 {[%clk 0:02:06]}  Nxe3 {[%clk 0:01:58]} 15. Qe2 {[%clk 0:01:59]}  Nd4 {[%clk 0:01:32]} 16. Qxe3 {[%clk 0:01:54]}  Nc2+ {[%clk 0:01:31]} 17. Bxc2 {[%clk 0:01:55]}  Bxe3 {[%clk 0:01:31]} 18. Rxg7 {[%clk 0:01:55]}  Qc7 {[%clk 0:00:56]} 19. Nfg5 {[%clk 0:01:17]}  Qxc2 {[%clk 0:00:35]} 20. Rd1 {[%clk 0:01:13]}  Bd7 {[%clk 0:00:17]} 21. Bf6 {[%clk 0:01:02]}  Bc5 {[%clk 0:00:07]} 22. Rxf7 {[%clk 0:01:00]}  Rd8 {[%clk 0:00:05]} 23. Be5 {[%clk 0:00:53]}  Bb6 {[%clk 0:00:02]} 24. Nd6# {[%clk 0:00:53]} 1-0